Cogmind - Beta 15 @@@ ROGUE MODE // 2025.05.28 @ 17:40:41 Player: raiguard Result: Destroyed by L-31 Rogue with Katana Performance ------------- Evolutions (2) 1000 Regions Visited (3) 600 Robots Destroyed (66) 330 Value Destroyed (1792) 1792 Prototype IDs (2) 40 Alien Tech Used (0) 0 Bonus (0) 0 TOTAL SCORE: 3762 Bonus ------- None Cogmind --------- Core Integrity 0/550 Matter 300/300 Energy 350/350 System Corruption 13% Temperature Cool (9) Movement Treading (160) Location -8/Materials Parts ------- > --- POWER (2) -------- (None) > --- PROPULSION (2) --- Light Treads Light Treads > --- UTILITY (5) ------ Large Storage Unit High-capacity Battery > --- WEAPON (2) ------- Light Assault Rifle > --- INVENTORY (15) --- Light Treads Light Treads Particle Gun Particle Gun Particle Cannon Light Assault Rifle Datajack Mining Claw Peak State ------------ > --- POWER ------------ Light Nuclear Core Light Nuclear Core > --- PROPULSION ------- Light Treads Armored Treads > --- UTILITY ---------- Improved Heat Sink Large Storage Unit Improved Targeting Computer Utility Shielding Improved Light Armor Plating > --- WEAPON ----------- Beam Rifle Light Assault Rifle > --- INVENTORY -------- Ion Engine Light Ion Engine Light Nuclear Core Light Treads Light Treads Small Storage Unit High-capacity Battery ECM Suite Reaction Control System Shield Generator Small Laser Particle Cannon Improved Grenade Launcher Datajack Mining Claw [Rating: 25] Favorites ----------- Power Ion Engine Engine Ion Engine Power Core Light Nuclear Core Propulsion Light Treads Treads Light Treads Leg Aluminum Leg Utility Utility Shielding Device ECM Suite Storage Large Storage Unit Processor Improved Targeting Computer Protection Utility Shielding Weapon Light Cannon Energy Gun Beam Rifle Energy Cannon Particle Cannon Ballistic Gun Assault Rifle Ballistic Cannon Light Cannon Launcher Improved Grenade Launcher Special Melee Weapon Datajack Build | -11 -10 -9 -8 ------- Run | Yrd Mat Mat Mat Slots Evolved 4 | . . 2 2 Power 1 | . . . 1 Propulsion . | . . . . Utility 3 | . . 2 1 Weapon . | . . . . Parts Attached 54 | 7 3 17 27 Power 12 | 2 . 2 8 Engine 8 | 2 . 2 4 Core 4 | . . . 4 Reactor . | . . . . Propulsion 15 | 2 . 8 5 Treads 11 | 2 . 4 5 Leg 4 | . . 4 . Wheel . | . . . . Hover . | . . . . Flight . | . . . . Utility 16 | 1 1 6 8 Device 5 | . 1 1 3 Storage 3 | 1 . 1 1 Processor 3 | . . 2 1 Hackware . | . . . . Protection 5 | . . 2 3 Artifact . | . . . . Weapon 11 | 2 2 1 6 Energy Gun 3 | . 1 . 2 Energy Cannon 1 | . . . 1 Ballistic Gun 4 | 2 . 1 1 Ballistic Cannon 1 | . 1 . . Launcher 1 | . . . 1 Special Weapon . | . . . . Impact Weapon . | . . . . Slashing Weapon . | . . . . Piercing Weapon . | . . . . Special Melee Weapon 1 | . . . 1 Unidentified Prototypes . | . . . . Parts Lost 25 | . 1 3 21 Power 7 | . . 1 6 Propulsion 4 | . . 1 3 Utility 9 | . . 1 8 Weapon 5 | . 1 . 4 Highest Loss Streak 8 | . 1 2 8 To Critical Strikes . | . . . . Average Backups 10 | 3 7 9 13 Power 1 | . . 1 2 Propulsion 2 | 2 4 2 2 Utility 2 | . 1 2 4 Weapon 3 | . 1 3 3 Tool/Special . | . . . . Unused Backups 13 | . 3 3 7 Power . | . . . . Propulsion 4 | . 1 2 1 Utility 2 | . 1 . 1 Weapon 7 | . 1 1 5 Tool/Special . | . . . . Average Slot Usage (%) 95 | . 98 95 94 Engine 9 | . 14 10 6 Core 3 | . . . 9 Treads 19 | . 28 17 16 Leg 1 | . . 2 . Device 8 | . 13 4 10 Storage 11 | . 14 11 9 Processor 8 | . . 10 11 Protection 11 | . . 16 11 Energy Gun 2 | . 1 . 5 Ballistic Gun 10 | . 16 11 7 Ballistic Cannon 6 | . 9 10 1 Peak Build Rating 25 | 6 7 13 25 Average Rating 13 | 4 6 11 19 On Entrance 6 | . 6 7 11 Naked Turns . | . . . . Heaviest Build 52 | 14 17 39 52 Greatest Support 40 | 40 40 40 40 Greatest Overweight (x) 11 | . . 5 11 Average Overweight (x) . | . . . . Largest Inventory Capacity 15 | 8 8 15 15 Average Capacity 11 | 6 8 10 15 Most Carried 15 | 6 8 15 15 Average Carried 10 | 3 7 9 13 Final Capacity 15 | 8 8 15 15 Final Carried 15 | 6 8 15 8 Class Distribution -------------------- 76% | Mutant 23% | Scavenger-Mutant Dominant Class ---------------- Mutant | -10/Materials Mutant | -9/Materials Scavenger-Mutant | -8/Materials Resources | -11 -10 -9 -8 ----------- Run | Yrd Mat Mat Mat Matter Collected 1824 | 175 292 754 603 Remotely . | . . . . Salvage Created 1966 | . 422 711 833 Parts 108 | . 26 41 41 Haulers Intercepted 1 | . . 1 . Recyclers Shooed 2 | . 1 . 1 Parts Field Recycled . | . . . . Retrieved Matter . | . . . . Parts Self-Destructed . | . . . . Prevented . | . . . . Kills | -11 -10 -9 -8 ------- Run | Yrd Mat Mat Mat Combat Hostiles Destroyed 52 | . 9 22 21 Guns 31 | . 4 13 14 Cannons 15 | . 5 9 1 AOE 6 | . . . 6 Classes Destroyed 9 | . 5 3 1 Worker 3 | . . 1 2 Builder 1 | . 1 . . Hauler 1 | . . 1 . Recycler 2 | . 1 1 . Watcher 7 | . 2 3 2 Swarmer 16 | . 2 8 6 Grunt 28 | . 7 12 9 Brawler 2 | . . . 2 Sentry 6 | . . 2 4 Best Kill Streak 6 | . 5 5 6 Combat Bots Only 5 | . 4 4 5 Max Kills in Single Turn 2 | . 1 2 2 Gunslinging . | . . . . Exploded 2 | . . . 2 Melee . | . . . . Uniques/NPCs Destroyed . | . . . . Combat | -11 -10 -9 -8 -------- Run | Yrd Mat Mat Mat Hostile Shots Fired 441 | . 64 136 241 Missed 125 | . 28 37 60 Hits 316 | . 36 99 181 Melee 21 | . . . 21 Projectile 295 | . 36 99 160 Critical Strikes 7 | . . 2 5 Actively Blocked 1 | . . . 1 Damage Taken 4501 | . 379 1143 2979 Core 781 | . 58 147 576 Absorbed by Shields 173 | . . . 173 Redirected to Shielding 50 | . . 8 42 Regen/Repaired (Parts) 279 | . 88 191 . Core Remaining (%) 79 | 100 76 63 . Volleys Fired 190 | . 24 75 91 Largest 2 | . 2 2 2 Hottest 133 | . 70 50 133 Shots Fired 351 | . 47 152 152 Gun 220 | . 25 75 120 Cannon 122 | . 22 77 23 Launcher 9 | . . . 9 Special . | . . . . Kinetic 287 | . 45 152 90 Thermal 55 | . 2 . 53 Explosive 9 | . . . 9 Electromagnetic . | . . . . Robot Hit Streak 26 | . 10 26 12 Robot Miss Streak 4 | . 3 4 4 Penetration Max . | . . . . Secondary Targets 2 | . . . 2 Max Gunslinging Chain 1 | . . . 1 Shots Hit Robots 238 | . 29 112 97 Core Hits 110 | . 17 43 50 Critical Kills 1 | . . 1 . Critical Parts Destroyed 1 | . . . 1 Critical Strikes 11 | . 1 3 7 Burn 4 | . . . 4 Destroy 4 | . . 1 3 Blast 3 | . 1 2 . Melee Attacks 2 | . . . 2 Impact . | . . . . Slashing . | . . . . Piercing . | . . . . Sneak Attacks . | . . . . Combat Hostiles . | . . . . Follow-up Attacks . | . . . . Damage Inflicted 4110 | . 477 1642 1991 Guns 1773 | . 184 712 877 Cannons 1434 | . 290 922 222 Explosions 892 | . . . 892 Melee . | . . . . Ramming 11 | . 3 8 . Kinetic 2673 | . 462 1634 577 Thermal 534 | . 12 . 522 Explosive 826 | . . . 826 Electromagnetic 66 | . . . 66 Impact . | . . . . Slashing . | . . . . Piercing . | . . . . Highest Corruption 13 | . . 1 13 Average Corruption 2 | . . 1 9 Corruption Purged . | . . . . Corruption Blocked . | . . . . Effects 19 | . . 10 9 Message Errors 4 | . . 2 2 Matter Fused 3 | . . 1 2 Heat Flow Errors 4 | . . 2 2 Energy Discharges 3 | . . 2 1 Data Loss (minor) 3 | . . 1 2 Misfires 2 | . . 2 . Overload Shots . | . . . . Overflow Damage 53 | . . 17 36 Projectiles 17 | . . 17 . Explosions 36 | . . . 36 Melee . | . . . . Knockbacks 33 | . 6 20 7 Impact . | . . . . Kinetic 27 | . 5 16 6 Secondary 6 | . 1 4 1 Self-Inflicted Damage 108 | . . . 108 Shots 5 | . . . 5 Rammed 3 | . . 3 . Targets Rammed 4 | . 1 3 . Kicked . | . . . . Crushed 1 | . 1 . . Highest Temperature 319 | . 18 180 319 Average Temperature 58 | . 4 69 57 Received Heat Transfer 1536 | . 162 507 867 Effects 3 | . . . 3 Interference 3 | . . . 3 Siege Activations . | . . . . Martial Activations . | . . . . Shielding Activations . | . . . . Robots Disrupted . | . . . . Combat Hostiles . | . . . . Robots Corrupted . | . . . . Combat Hostiles . | . . . . Parts Fried . | . . . . Impact Corruptions . | . . . . Robots Melted . | . . . . Combat Hostiles . | . . . . Parts Melted 3 | . . . 3 Heat Transferred 1616 | . 25 . 1591 Parts Sabotaged . | . . . . Parts Stolen . | . . . . Parts Stripped . | . . . . Power Chain Reactions . | . . . . Alert | -11 -10 -9 -8 ------- Run | Yrd Mat Mat Mat Maximum Alert Level 1 | . . 1 1 Low Security (%) 92 | 100 100 91 87 Level 1 7 | . . 8 12 Level 2 . | . . . . Level 3 . | . . . . Level 4 . | . . . . Level 5 . | . . . . High Security . | . . . . Max Security . | . . . . Peak Influence 256 | . 100 220 256 Initial 80 | . . . 80 Average 56 | . 39 56 70 Influence Increases 1528 | . 257 600 671 Destroy 0b10 Robot/C 1040 | . 180 440 420 Destroy 0b10 Robot/NC 70 | . 20 30 20 Destroy Leader 216 | . 44 78 94 Successful Hack 32 | . 11 . 21 Disable Machine 45 | . . 15 30 Destroy Structure 80 | . 2 7 71 Lose Combat Pursuer 45 | . . 30 15 Influence Decreases 1365 | . 257 408 700 Entered New Map 112 | . . . 112 Time Decay 917 | . 247 312 358 Lost Part 250 | . 10 30 210 Purge Threat 86 | . . 66 20 Squads Dispatched 9 | . 1 2 6 Investigation 3 | . . 1 2 Extermination . | . . . . Reinforcement 3 | . 1 1 1 Assault . | . . . . Garrison 3 | . . . 3 Intercept . | . . . . Searches Triggered . | . . . . Construction Impeded 1 | . . . 1 Haulers Reinforced . | . . . . Active Scanning Responses . | . . . . Cargo Convoy Interrupts . | . . . . Stealth | -11 -10 -9 -8 --------- Run | Yrd Mat Mat Mat Distress Signals 7 | . 1 2 4 Communications Jammed . | . . . . Distress Signals . | . . . . Times Spotted 102 | . 18 41 43 Peak Tracking Total 6 | . 6 6 5 Tactical Retreats 11 | . 3 4 4 Traps | -11 -10 -9 -8 ------- Run | Yrd Mat Mat Mat Traps Triggered 2 | . . 1 1 Indirectly . | . . . . Trap Hack Attempts . | . . . . Triggered . | . . . . Disarmed . | . . . . Reprogrammed . | . . . . Reused . | . . . . Traps Extracted . | . . . . Installed . | . . . . Triggered . | . . . . Machines | -11 -10 -9 -8 ---------- Run | Yrd Mat Mat Mat Machines Disabled 3 | . . 1 2 Max in Single Turn 1 | . . 1 1 Machines Repaired . | . . . . Machines Dismantled . | . . . . Machines Sabotaged . | . . . . Overloaded Fab Kills . | . . . . Hacking | -11 -10 -9 -8 --------- Run | Yrd Mat Mat Mat Machines Accessed 12 | . 4 3 5 Terminals 8 | . 2 2 4 Fabricators . | . . . . Repair Stations 2 | . 1 1 . Recycling Units 1 | . 1 . . Scanalyzers 1 | . . . 1 Garrison Access . | . . . . Total Hacks 40 | . 11 12 17 Successful 27 | . 8 7 12 Failed 13 | . 3 5 5 Catastrophic 1 | . . . 1 Database Lockouts . | . . . . Manual 2 | . . . 2 Terminals 25 | . 5 6 14 Fabricators . | . . . . Repair Stations 10 | . 4 6 . Recycling Units 2 | . 2 . . Scanalyzers 3 | . . . 3 Garrison Access . | . . . . Terminal Hacks 16 | . 3 3 10 Record 6 | . . 1 5 Prototype ID Bank 1 | . . . 1 Emergency Access Points 1 | . . . 1 Terminal Index 1 | . . . 1 Alert Level 1 | . . 1 . Unreport Threat 2 | . . 1 1 Locate Traps 1 | . 1 . . Dispatch Records 1 | . 1 . . Recall Investigation 1 | . 1 . . Hauler Manifests 1 | . . . 1 Fabricator Hacks . | . . . . Repair Station Hacks 8 | . 4 4 . Scan Component 4 | . 2 2 . Repair 4 | . 2 2 . Recycling Unit Hacks 1 | . 1 . . Retrieve Matter 1 | . 1 . . Scanalyzer 2 | . . . 2 Insert Component 1 | . . . 1 Analyze 1 | . . . 1 Garrison Access Hacks . | . . . . Unauthorized Hacks . | . . . . Terminals . | . . . . Fabricators . | . . . . Repair Stations . | . . . . Recycling Units . | . . . . Scanalyzers . | . . . . Garrison Access . | . . . . Data Cores Recovered . | . . . . Used . | . . . . Hacking Detections 12 | . 4 3 5 Full Trace Events 3 | . . 1 2 Feedback Events . | . . . . Feedback Blocked . | . . . . Robot Schematics Acquired . | . . . . Robots Built . | . . . . Authchips . | . . . . Time . | . . . . Total Robot Build Rating . | . . . . Part Schematics Acquired 1 | . . . 1 Parts Built . | . . . . Authchips . | . . . . Time . | . . . . Total Part Build Rating . | . . . . Parts Repaired 4 | . 2 2 . Time 104 | . 52 52 . Parts Recycled . | . . . . Recycled Matter . | . . . . Retrieved Matter . | . . . . Retrieved Components . | . . . . Parts Scanalyzed 1 | . . . 1 Part Schematics Acquired 1 | . . . 1 Parts Damaged . | . . . . Bothacking | -11 -10 -9 -8 ------------ Run | Yrd Mat Mat Mat Used RIF Installer . | . . . . Robots Hacked 1 | . . . 1 Non-combat . | . . . . Combat 1 | . . . 1 Robot Hacks Applied 1 | . . . 1 parse_system 1 | . . . 1 Relay Couplers Released . | . . . . Fabnet Peak Effective % . | . . . . Robots Rewired . | . . . . Allies Hacked . | . . . . Hacks Repelled . | . . . . Allies | -11 -10 -9 -8 -------- Run | Yrd Mat Mat Mat Total Allies . | . . . . Largest Group . | . . . . Highest-Rated Group . | . . . . Highest-Rated Ally . | . . . . Total Orders . | . . . . Ally Attacks . | . . . . Total Damage . | . . . . Kills . | . . . . Allies Corrupted . | . . . . Allies Melted . | . . . . Intel | -11 -10 -9 -8 ------- Run | Yrd Mat Mat Mat Active Infowar (turns) 2043 | . 664 290 1089 Optics 682 | . . 16 666 ECM 1377 | . 664 290 423 Robot Analysis Total . | . . . . Derelict Logs Recovered . | . . . . Drone Launches . | . . . . Drone Recoveries . | . . . . Exploration | -11 -10 -9 -8 ------------- Run | Yrd Mat Mat Mat Turns Passed 3382 | 111 679 1274 1318 Spaces Moved 1444 | 63 302 527 552 Core 10 | 4 . 5 1 Treads 1346 | 59 302 434 551 Legs 88 | . . 88 . Wheels . | . . . . Hover . | . . . . Flight . | . . . . Fastest Speed 50 | 50 160 120 160 Average Speed 168 | 153 160 162 179 Slowest Speed 600 | 160 160 300 600 Overloaded Moves . | . . . . Propulsion Burnouts . | . . . . Robots Hopped . | . . . . Potential Cave-ins . | . . . . Cave-ins Triggered 1 | . . . 1 Exploration Rate (%) 30 | 4 54 30 33 Regions Visited 3 Branch Regions . Pre-discovered Areas . | . . . . Known Exits Taken . | . . . . Unknown Exits Taken 3 | 1 1 1 . Scrap Searched . | . . . . Spaces Dug . | . . . . Terrain Destroyed 71 | . . . 71 Melee . | . . . . Projectile . | . . . . AOE 71 | . . . 71 Terrain Rammed . | . . . . Walls Destroyed . | . . . . Machines Disabled . | . . . . Actions | -11 -10 -9 -8 --------- Run | Yrd Mat Mat Mat Total 2067 | 74 453 799 741 Wait 274 | . 105 138 31 Move 1441 | 62 301 526 552 Hop . | . . . . Pick Up 41 | 5 9 15 12 Fast Attach 23 | 6 3 9 5 Attach 28 | . 2 10 16 Detach 6 | . 1 4 1 Swap 25 | 1 1 6 17 Drop 33 | . 6 13 14 Fire 190 | . 24 75 91 Melee 2 | . . . 2 Ram 1 | . . 1 . Kick . | . . . . Crush 3 | . 1 2 . Escape Stasis . | . . . . Rewire . | . . . . Trap . | . . . . Miscellaneous . | . . . . Route ------- -11/Scrapyard -10/Materials (discovered 2 exits: *Mat / [*Min]) -9/Materials (discovered 2 exits: *Mat / [*Sto]) -8/Materials History --------- Turn | Location | Event 2 | -11/Scrapyard | Met Revision 17 5 | -11/Scrapyard | Discovered new exit (range 16) 112 | -11/Scrapyard | Entered Materials 318 | -10/Materials | Build established: Mutant 350 | -10/Materials | Discovered new exit (range 7) 599 | -10/Materials | Discovered new exit (range 13) 636 | -10/Materials | Repaired Ion Engine 663 | -10/Materials | Repaired Lgt. Cannon 791 | -10/Materials | Entered another Materials area 791 | -9/Materials | Evolved 2 slots: Utility x2 1055 | -9/Materials | Repaired Lgt. Treads 1390 | -9/Materials | Repaired Lgt. Cannon 1863 | -9/Materials | Discovered new exit (range 8) 2025 | -9/Materials | Discovered new exit (range 8) 2065 | -9/Materials | Entered another Materials area 2065 | -8/Materials | Evolved 2 slots: Power x1, Utility x1 2280 | -8/Materials | Build established: Scavenger-Mutant 3069 | -8/Materials | Build established: Mutant 3151 | -8/Materials | Lost 3 parts (1p1u1w) 3153 | -8/Materials | Crushed by falling debris 3153 | -8/Materials | Core integrity fell below 50% 3153 | -8/Materials | System corruption reached 10% 3169 | -8/Materials | Garrison activated, responded to threat 3254 | -8/Materials | Lost 8 parts (3p1n3u1w) 3358 | -8/Materials | Lost 3 parts (1p2u) 3363 | -8/Materials | Core integrity fell below 20% 3383 | -8/Materials | Destroyed by L-31 Rogue with Katana Last Messages --------------- Bump into an enemy to attack with the active melee weapon. Even while active, melee weapons do not fire together with ranged weapons in the same volley. 03359_ Lgt. Treads severed. 03360_ Jacked L-31 Rogue... Right-click on available options for more info. Keyboard players can use Shift-a~z. >>parse_system Reading system data... 03361_ Jacked L-31 Rogue... 03369_ System corrupted: Matter fused (-8). 03370_ Acquired Lgt. Treads. 03373_ L-31 Rogue suffers critical hit (Burn). 03373_ Arm. Treads destroyed. 03373_ Imp. Light Armor Plating destroyed. 03376_ Beam Rifle destroyed. 03378_ Imp. Heat Sink destroyed. 03379_ K-01 Serf collects debris. 03382_ Acquired 31 matter. 03383_ Lgt. Ion Engine destroyed. Map ----- +----------------------------------------------------+ | ?????????????????????????????????????????????????? | | ?????????????????????????????????????????????????? | | ?????????????????????????????????????????????????? | | ?????????????????????????????????????????????????? | | ?????????????????????????????????????????????????? | | ?????????????????????????????????????????????????? | | ?????????????????????????????????????????????????? | | ?????????????????????????????????????????????????? | | ?????????????????????????????????????????????????? | | ???????????????????????????????????+###+##???????? | | ??????????????????????????????????# #???????? | | ??????????????????????????????????# #???????? | | ??????????????????????#####???????# #???????? | | ????????????????????###########?### #???????? | | ????????????###+????# ##### #???????? | | ????????????# ??# + #???????? | | ????????????# ?# #% #???????? | | ????????????# # # #???????? | | ????????????# # % [ !/ ! #???????? | | ????????????# # =##### #???????? | | ????????????# # % # ## ######### | | ????????????# # % ##### # | | ????????????# ####+######???# # | | ????????????# # % [%######## # | | ????????????# ## k # | | ????????????# # @ + | | ????????????####### ## l % %[k # | | ??????????????????## # ########### # | | ???????????????????# ## ############% # | | ???????????????????# # =# # ####+#### | | ???????????????????####r!%# / #### ###? | | ?????????????????????## # # ^^ ## | | ????????????????????[ # ## # ^ | | ??????????????????? #g ############ = ^^ ## | | ??????????????????""" # #???????#####"#########? | | ????????????????????" # #???????# % #?????? | | ??????????????????????# #???????# #?????? | | ??????????????????????# #???????# #?????? | | ??????????????????????+ #???????# #?????? | | ??????????????????????# #???????# #?????? | | ??????????????????????# Y#???????# #?????? | | ??????????????????????# #???????# #?????? | | ??????????????????????? #???????# #?????? | | ??????????????????????? ????????# #?????? | | ??????????????????????? ????????##########?????? | | ?????????????????????????????????????????????????? | | ?????????????????????????????????????????????????? | | ?????????????????????????????????????????????????? | | ?????????????????????????????????????????????????? | | ?????????????????????????????????????????????????? | +----------------------------------------------------+ Best States ------------- Heat Dissipation 45 Energy Generation 23 Energy Capacity 400 Matter Stores 300 Matter Capacity 300 Sight Range 18 Terrain Scan Density 10 ECM Strength 1 Armor Coverage 225 Utility Shielding 33 Evasion (%) 55 Targeting Accuracy 6 Recoil Reduction 2 Item Schematics ----------------- Lgt. Nuclear Core | -8/Materials | Scanalyzed Robot Schematics ------------------ None Fabricated ------------ Nothing Repaired ---------- Ion Engine | 73% | -10/Materials Lgt. Cannon | 40% | -10/Materials Lgt. Treads | 20% | -9/Materials Lgt. Cannon | 33% | -9/Materials Alien Tech Used ----------------- None Achievements -------------- Novice Programmer System Compromised Challenges ------------ None Game ------ Seed ThermalMultinovaTurbovents Manual? 0 Play Time 01:11:51 Cumulative 10.2 hours Start 2025.05.28 @ 12:35:22 End 2025.05.28 @ 17:40:41 Sessions 7 Manual Loads 0 Difficulty Rogue Special Mode None Game No. 19 Rogue 19 Adventurer 0 Explorer 0 Win Type - Total 0 Types 0/0/0/0/0/0/0/0/0/0 Lore% 2 Gallery% 8 Achievement% 10 Wizard Run 0 Options --------- Layout 0 ASCII 0 Keyboard 1 Movement Vi Keybinds 0 Fullscreen 2 Font 24/Smallcaps Map View 76x56 Zoom Use 0% Tactical HUD 1 Map Filters NONE Filters NONE Steam 1 RUN: 8d5cd728-9074-4ee1-8126-aafee2ce53a0